{"text_format":"3","workbook":"xlsx","n_sheets":1,"sheets":["Sheet1"],"not_rendered":{"defined_names":1},"read":"whole","date_system":"1900"}

{"sheet":"Sheet1","index":0,"n_rows":22,"n_cols":10,"rows_kept":22,"merged":[[21,0,21,4]]}
["Material","Unit Price Per Ton (delivered by the Contractor)","Esrtimated Quantity for Delivery (Tons)","Extended Price of Material Delivered by the Contractor","Unit Price per Ton (Picked-Up by the County)","Esrtimated Quantity for Pickup\n(Tons)","Extended Price of Material Picked up by the County","Unit Price for Emergency Delivery","Estimated Quantity for Emergency Delivery (Tons)","Extended price for Emergency Delivery"]
["1. Trap Rock"]
["Class I",0,300,{"$f":"B3*C3","v":0},0,100,{"$f":"E3*F3","v":0},0,1,{"$f":"H3*I3","v":0}]
["Class II",0,300,{"$f":"B4*C4","v":0},0,100,{"$f":"E4*F4","v":0},0,1,{"$f":"H4*I4","v":0}]
["Gabion",0,300,0,0,100,0,0,1,0]
["2. Crusher Run Dust"]
["VDOT #21-A",0,400,0,0,100,0,0,250,{"$f":"H7*I7","v":0}]
["VDOT #21-B",0,400,{"$f":"B8*C8","v":0},0,100,{"$f":"E8*F8","v":0},0,250,{"$f":"H8*I8","v":0}]
["3. Surge Rock"]
["#2 (3\" diameter)",0,300,0,0,100,0,0,1,{"$f":"H10*I10","v":0}]
["#3 (2 -1/2\" diameter)",0,300,0,0,100,0,0,1,0]
["4. Washed Gravel"]
["VDOT #57",0,400,0,0,100,0,0,250,{"$f":"H13*I13","v":0}]
["5. Pea Gravel"]
["VDOT #8",0,200,0,0,50,0,0,1,{"$f":"H15*I15","v":0}]
["6. Backfill Materials"]
["CBR-30",0,100,0,0,25,0,0,1,{"$f":"H17*I17","v":0}]
["Extended Subtotal",null,"Subtotal",{"$f":"SUM(D3:D17)","v":0},null,"Subtotal",{"$f":"SUM(G3:G17)","v":0},null,"Subtotal",{"$f":"SUM(J3:J17)","v":0}]
[]
[{"$nulls":8},"Grand Total",{"$f":"D18+G18+J18","v":0}]
[]
["PERCENTAGE DISCOUNT OFF OF THE LIST PRICES FOR PURCHASE OF OTHER ITEMS NOT LISTED ON THE BID FORM: BIDDER MUST ENTER A PERCENT DISCOUNT, IF NONE, ENTER 0%.",{"$nulls":4},"X%"]